[Event "*** Titled Tuesday Blitz"]
[Site "Chess.com"]
[Date "2021.03.16"]
[Round "7"]
[White "Agibileg"]
[Black "AsaHoffmann"]
[Result "1-0"]
[WhiteElo "2517"]
[BlackElo "2356"]
[TimeControl "180+1"]
[EndTime "11:17:18 PDT"]
[Termination "Agibileg won on time"]

1. d4 {[%clk 0:03:00.9]} 1... Nf6 {[%clk 0:02:48.7]} 2. c4 {[%clk 0:03:01.2]}
2... c5 {[%clk 0:02:43.6]} 3. d5 {[%clk 0:03:01.1]} 3... e5 {[%clk 0:02:40.1]}
4. dxe6 {[%clk 0:03:00]} 4... fxe6 {[%clk 0:02:39.7]} 5. Nc3 {[%clk 0:03:00.4]}
5... d5 {[%clk 0:02:39.4]} 6. cxd5 {[%clk 0:02:57.4]} 6... exd5 {[%clk 0:02:39]}
7. Bg5 {[%clk 0:02:57.8]} 7... d4 {[%clk 0:02:38.8]} 8. Ne4 {[%clk 0:02:54]}
8... Be7 {[%clk 0:02:37.7]} 9. Bxf6 {[%clk 0:02:52]} 9... Bxf6 {[%clk
0:02:37.3]} 10. Nxf6+ {[%clk 0:02:47.8]} 10... Qxf6 {[%clk 0:02:36.9]} 11. g3
{[%clk 0:02:48.1]} 11... O-O {[%clk 0:02:35.8]} 12. Nf3 {[%clk 0:02:48.1]} 12...
Nc6 {[%clk 0:02:31.1]} 13. Bg2 {[%clk 0:02:48.3]} 13... Be6 {[%clk 0:02:18.6]}
14. O-O {[%clk 0:02:48]} 14... Rad8 {[%clk 0:02:14.4]} 15. Qc2 {[%clk
0:02:35.7]} 15... b6 {[%clk 0:02:10.9]} 16. a3 {[%clk 0:02:33.5]} 16... Bd5
{[%clk 0:02:09.1]} 17. b4 {[%clk 0:02:19.1]} 17... c4 {[%clk 0:02:00.4]} 18. Nd2
{[%clk 0:02:08.4]} 18... c3 {[%clk 0:01:35.5]} 19. Bxd5+ {[%clk 0:02:07]} 19...
Rxd5 {[%clk 0:01:34.9]} 20. Nb3 {[%clk 0:01:27.3]} 20... Qe6 {[%clk 0:01:25.8]}
21. Rad1 {[%clk 0:01:23.7]} 21... Rfd8 {[%clk 0:01:20.6]} 22. Rd3 {[%clk
0:01:19.1]} 22... Rh5 {[%clk 0:01:19.1]} 23. e3 {[%clk 0:01:06.4]} 23... Qh3
{[%clk 0:01:06.4]} 24. f4 {[%clk 0:01:05.9]} 24... dxe3 {[%clk 0:00:58.3]} 25.
Rxd8+ {[%clk 0:00:59.8]} 25... Nxd8 {[%clk 0:00:57.8]} 26. Nd4 {[%clk
0:00:52.7]} 26... Nf7 {[%clk 0:00:54.2]} 27. Nf3 {[%clk 0:00:49.7]} 27... Nd6
{[%clk 0:00:44.5]} 28. Qxc3 {[%clk 0:00:43.8]} 28... e2 {[%clk 0:00:42.8]} 29.
Re1 {[%clk 0:00:42.6]} 29... Qe6 {[%clk 0:00:41]} 30. Ne5 {[%clk 0:00:40.6]}
30... Qa2 {[%clk 0:00:24.3]} 31. Qf3 {[%clk 0:00:32.5]} 31... Rf5 {[%clk
0:00:22.4]} 32. Rxe2 {[%clk 0:00:30]} 32... Qa1+ {[%clk 0:00:20.6]} 33. Kg2
{[%clk 0:00:29.5]} 33... Nb5 {[%clk 0:00:19.1]} 34. Qd5+ {[%clk 0:00:27.7]} 1-0

[Event "*** Titled Tuesday Blitz"]
[Site "Chess.com"]
[Date "2021.03.16"]
[Round "7"]
[White "ckgchess"]
[Black "vugarrasulov"]
[Result "0-1"]
[WhiteElo "2765"]
[BlackElo "2859"]
[TimeControl "180+1"]
[EndTime "11:17:20 PDT"]
[Termination "vugarrasulov won on time"]

1. e4 {[%clk 0:03:00.9]} 1... e5 {[%clk 0:03:00.2]} 2. Nf3 {[%clk 0:02:53.3]}
2... Nc6 {[%clk 0:03:00.7]} 3. Bc4 {[%clk 0:02:52.9]} 3... Bc5 {[%clk
0:03:00.1]} 4. c3 {[%clk 0:02:53]} 4... Nf6 {[%clk 0:02:59.8]} 5. d4 {[%clk
0:02:53.7]} 5... exd4 {[%clk 0:03:00.2]} 6. cxd4 {[%clk 0:02:54.6]} 6... Bb4+
{[%clk 0:03:00]} 7. Nbd2 {[%clk 0:02:55]} 7... d5 {[%clk 0:02:58.1]} 8. exd5
{[%clk 0:02:54.9]} 8... Nxd5 {[%clk 0:02:59]} 9. O-O {[%clk 0:02:55.3]} 9... O-O
{[%clk 0:02:58.3]} 10. a3 {[%clk 0:02:55.8]} 10... Be7 {[%clk 0:02:55.1]} 11.
Re1 {[%clk 0:02:55.2]} 11... Be6 {[%clk 0:02:51]} 12. Ba2 {[%clk 0:02:24.7]}
12... Qd7 {[%clk 0:02:39.3]} 13. Ne4 {[%clk 0:02:17.1]} 13... Rad8 {[%clk
0:02:38.6]} 14. Neg5 {[%clk 0:01:59.1]} 14... Bf5 {[%clk 0:02:34.5]} 15. Ne5
{[%clk 0:01:31.6]} 15... Nxe5 {[%clk 0:02:31.9]} 16. Rxe5 {[%clk 0:01:32.5]}
16... c6 {[%clk 0:02:28.6]} 17. Rxf5 {[%clk 0:01:19.4]} 17... Qxf5 {[%clk
0:02:18.2]} 18. Bb1 {[%clk 0:01:19.2]} 18... Qxg5 {[%clk 0:02:17.8]} 19. Bxg5
{[%clk 0:01:17.4]} 19... Bxg5 {[%clk 0:02:18.7]} 20. Qh5 {[%clk 0:01:00.8]}
20... h6 {[%clk 0:02:18.3]} 21. h4 {[%clk 0:01:01]} 21... Nf6 {[%clk 0:02:00]}
22. Qd1 {[%clk 0:00:50.1]} 22... Bf4 {[%clk 0:02:00.1]} 23. Bc2 {[%clk
0:00:46.9]} 23... Rfe8 {[%clk 0:01:50.9]} 24. g3 {[%clk 0:00:41.2]} 24... Bc7
{[%clk 0:01:50.7]} 25. Qf3 {[%clk 0:00:38.2]} 25... Rxd4 {[%clk 0:01:46.5]} 26.
Rd1 {[%clk 0:00:38.9]} 26... Rxd1+ {[%clk 0:01:45.9]} 27. Qxd1 {[%clk
0:00:39.6]} 27... Bb6 {[%clk 0:01:45.9]} 28. Qd3 {[%clk 0:00:39.1]} 28... h5
{[%clk 0:01:43]} 29. Kg2 {[%clk 0:00:38.8]} 29... g6 {[%clk 0:01:42.9]} 30. a4
{[%clk 0:00:37.8]} 30... Ng4 {[%clk 0:01:40]} 31. Bb3 {[%clk 0:00:21.8]} 31...
Kg7 {[%clk 0:01:27.5]} 32. Qd7 {[%clk 0:00:20.9]} 32... Rf8 {[%clk 0:01:20.4]}
33. Qxb7 {[%clk 0:00:20.6]} 33... Bxf2 {[%clk 0:01:17.3]} 34. Qxc6 {[%clk
0:00:20.6]} 34... Bd4 {[%clk 0:01:17.4]} 35. Qd6 {[%clk 0:00:18.5]} 35... Bxb2
{[%clk 0:01:14.2]} 36. a5 {[%clk 0:00:18.9]} 36... Bf6 {[%clk 0:01:14]} 37. a6
{[%clk 0:00:18.4]} 37... Rd8 {[%clk 0:01:11]} 38. Qc7 {[%clk 0:00:13.7]} 38...
Rd2+ {[%clk 0:01:11]} 39. Kf1 {[%clk 0:00:13.8]} 39... Rf2+ {[%clk 0:01:03.8]}
40. Ke1 {[%clk 0:00:13.4]} 40... Bd4 {[%clk 0:01:04.1]} 41. Qd7 {[%clk 0:00:09]}
41... Bc3+ {[%clk 0:01:03.5]} 42. Kd1 {[%clk 0:00:09.1]} 42... Ne3+ {[%clk
0:00:58.5]} 43. Kc1 {[%clk 0:00:09]} 43... Rf1+ {[%clk 0:00:59.2]} 0-1

[Event "*** Titled Tuesday Blitz"]
[Site "Chess.com"]
[Date "2021.03.16"]
[Round "7"]
[White "bricolageur"]
[Black "GelmanAlexander"]
[Result "0-1"]
[WhiteElo "2259"]
[BlackElo "2561"]
[TimeControl "180+1"]
[EndTime "11:17:22 PDT"]
[Termination "GelmanAlexander won by resignation"]

1. e4 {[%clk 0:03:00.9]} 1... c5 {[%clk 0:03:00.1]} 2. Nf3 {[%clk 0:03:00.6]}
2... e6 {[%clk 0:03:00.6]} 3. d4 {[%clk 0:03:01.1]} 3... cxd4 {[%clk 0:03:00.7]}
4. Nxd4 {[%clk 0:03:01.6]} 4... a6 {[%clk 0:03:00.3]} 5. Bd3 {[%clk 0:03:01.2]}
5... d6 {[%clk 0:03:00.5]} 6. c4 {[%clk 0:03:00.4]} 6... Nf6 {[%clk 0:03:00.6]}
7. Nc3 {[%clk 0:03:00.9]} 7... Bd7 {[%clk 0:03:00.2]} 8. O-O {[%clk 0:02:59.9]}
8... Nc6 {[%clk 0:03:00.6]} 9. Be3 {[%clk 0:03:00.1]} 9... Be7 {[%clk
0:03:00.3]} 10. Kh1 {[%clk 0:02:59]} 10... O-O {[%clk 0:02:59.8]} 11. f4 {[%clk
0:02:57.1]} 11... Rc8 {[%clk 0:02:58.5]} 12. f5 {[%clk 0:02:15.5]} 12... Ne5
{[%clk 0:02:54.1]} 13. Qe2 {[%clk 0:02:05.6]} 13... Qc7 {[%clk 0:02:37]} 14.
Rad1 {[%clk 0:01:56.3]} 14... Nxd3 {[%clk 0:02:33.9]} 15. Rxd3 {[%clk
0:01:55.8]} 15... Qxc4 {[%clk 0:02:33.7]} 16. Bg5 {[%clk 0:01:50.3]} 16... b5
{[%clk 0:02:20.3]} 17. a3 {[%clk 0:01:28.8]} 17... a5 {[%clk 0:02:08.8]} 18. b3
{[%clk 0:00:52.9]} 18... Qc5 {[%clk 0:02:04.8]} 19. b4 {[%clk 0:00:12.1]} 19...
axb4 {[%clk 0:02:03.1]} 20. axb4 {[%clk 0:00:12.2]} 20... Qc4 {[%clk 0:01:42.5]}
21. Re1 {[%clk 0:00:08]} 21... Rfe8 {[%clk 0:01:28.8]} 22. Qd2 {[%clk
0:00:08.1]} 22... Qxb4 {[%clk 0:01:10.3]} 23. Rg3 {[%clk 0:00:06.2]} 23... Kh8
{[%clk 0:00:52.6]} 24. Rd1 {[%clk 0:00:01.9]} 24... Rxc3 {[%clk 0:00:31.1]} 25.
Qxc3 {[%clk 0:00:02.3]} 25... Qxc3 {[%clk 0:00:30.4]} 26. Rxc3 {[%clk
0:00:03.2]} 26... Nxe4 {[%clk 0:00:30.9]} 27. Bxe7 {[%clk 0:00:03.5]} 27... Nxc3
{[%clk 0:00:30]} 28. Rd3 {[%clk 0:00:04]} 28... Rxe7 {[%clk 0:00:20.2]} 29. Rxc3
{[%clk 0:00:04.5]} 29... exf5 {[%clk 0:00:20.9]} 30. h3 {[%clk 0:00:04.4]} 30...
g6 {[%clk 0:00:20.6]} 31. Rc7 {[%clk 0:00:04.5]} 31... Kg7 {[%clk 0:00:18.9]}
32. Kh2 {[%clk 0:00:05]} 32... Kf6 {[%clk 0:00:18.4]} 33. Nc6 {[%clk 0:00:05.3]}
33... Bxc6 {[%clk 0:00:18.5]} 34. Rxc6 {[%clk 0:00:06.2]} 0-1

[Event "*** Titled Tuesday Blitz"]
[Site "Chess.com"]
[Date "2021.03.16"]
[Round "7"]
[White "Fandorine"]
[Black "RobertoJBM"]
[Result "1-0"]
[WhiteElo "2886"]
[BlackElo "2764"]
[TimeControl "180+1"]
[EndTime "11:17:24 PDT"]
[Termination "Fandorine won by resignation"]

1. e4 {[%clk 0:03:00.9]} 1... c6 {[%clk 0:02:59.5]} 2. Nf3 {[%clk 0:03:00.8]}
2... d5 {[%clk 0:03:00.4]} 3. d3 {[%clk 0:03:01.1]} 3... g6 {[%clk 0:03:00]} 4.
e5 {[%clk 0:02:59.8]} 4... Bg4 {[%clk 0:02:59]} 5. h3 {[%clk 0:02:59.5]} 5...
Bxf3 {[%clk 0:02:58.8]} 6. Qxf3 {[%clk 0:03:00.4]} 6... e6 {[%clk 0:02:59.5]} 7.
d4 {[%clk 0:02:55.3]} 7... Qb6 {[%clk 0:02:55.8]} 8. Qb3 {[%clk 0:02:48.3]} 8...
Nd7 {[%clk 0:02:52.1]} 9. c3 {[%clk 0:02:46.6]} 9... Bh6 {[%clk 0:02:48.7]} 10.
f4 {[%clk 0:02:43.2]} 10... Ne7 {[%clk 0:02:47.7]} 11. g4 {[%clk 0:02:30]} 11...
c5 {[%clk 0:02:41.4]} 12. Qxb6 {[%clk 0:02:29.5]} 12... axb6 {[%clk 0:02:40.9]}
13. Be3 {[%clk 0:02:24.7]} 13... Nc6 {[%clk 0:02:40.2]} 14. a3 {[%clk
0:02:00.9]} 14... Bf8 {[%clk 0:02:23]} 15. Nd2 {[%clk 0:01:57.2]} 15... h5
{[%clk 0:02:19.5]} 16. Bg2 {[%clk 0:01:52.9]} 16... Be7 {[%clk 0:02:06.1]} 17.
Ke2 {[%clk 0:01:48.5]} 17... hxg4 {[%clk 0:02:03.7]} 18. hxg4 {[%clk 0:01:48.3]}
18... O-O-O {[%clk 0:02:03.7]} 19. f5 {[%clk 0:01:43.3]} 19... gxf5 {[%clk
0:02:02.2]} 20. gxf5 {[%clk 0:01:44.2]} 20... Rdg8 {[%clk 0:02:01]} 21. Rxh8
{[%clk 0:01:37.6]} 21... Rxh8 {[%clk 0:02:00.4]} 22. f6 {[%clk 0:01:35.2]} 22...
Bf8 {[%clk 0:01:57.2]} 23. Rh1 {[%clk 0:01:35.3]} 23... Rxh1 {[%clk 0:01:56.1]}
24. Bxh1 {[%clk 0:01:36.2]} 24... Ndxe5 {[%clk 0:01:41.5]} 25. dxe5 {[%clk
0:01:34.5]} 25... Nxe5 {[%clk 0:01:42.4]} 26. Bf3 {[%clk 0:01:24.2]} 26... Kd7
{[%clk 0:01:38.1]} 27. Bh5 {[%clk 0:01:22]} 27... Ke8 {[%clk 0:01:37.3]} 28. Nf3
{[%clk 0:01:17.2]} 28... Nd7 {[%clk 0:01:15.3]} 29. Ng5 {[%clk 0:01:16.9]} 29...
Nxf6 {[%clk 0:01:15.4]} 30. Bxf7+ {[%clk 0:01:16.2]} 30... Ke7 {[%clk
0:01:15.5]} 31. Bxe6 {[%clk 0:01:13.7]} 31... Bh6 {[%clk 0:01:11.8]} 32. Bh3
{[%clk 0:01:04.7]} 32... Bg7 {[%clk 0:01:06]} 33. Ne6 {[%clk 0:00:56]} 33... Bh8
{[%clk 0:01:06.1]} 34. Nc7 {[%clk 0:00:51.7]} 34... Kd6 {[%clk 0:01:03]} 35.
Nb5+ {[%clk 0:00:47.9]} 35... Kc6 {[%clk 0:01:01.6]} 36. a4 {[%clk 0:00:48.4]}
36... Ne4 {[%clk 0:00:54]} 37. Bg2 {[%clk 0:00:41]} 37... Ng3+ {[%clk
0:00:47.5]} 38. Kd2 {[%clk 0:00:34.1]} 38... Nf5 {[%clk 0:00:42.2]} 39. c4
{[%clk 0:00:30.8]} 39... Bxb2 {[%clk 0:00:37]} 40. cxd5+ {[%clk 0:00:28.3]}
40... Kd7 {[%clk 0:00:34.8]} 41. Bh3 {[%clk 0:00:28.6]} 1-0

[Event "*** Titled Tuesday Blitz"]
[Site "Chess.com"]
[Date "2021.03.16"]
[Round "7"]
[White "MateusViageiro"]
[Black "SilviusTiberius"]
[Result "0-1"]
[WhiteElo "2359"]
[BlackElo "2536"]
[TimeControl "180+1"]
[EndTime "11:17:26 PDT"]
[Termination "SilviusTiberius won on time"]

1. e4 {[%clk 0:03:00.9]} 1... e5 {[%clk 0:02:59.5]} 2. Nf3 {[%clk 0:02:55.8]}
2... Nc6 {[%clk 0:02:59.9]} 3. Bb5 {[%clk 0:02:54.8]} 3... Nf6 {[%clk
0:03:00.1]} 4. O-O {[%clk 0:02:52.8]} 4... Nxe4 {[%clk 0:03:00.1]} 5. Re1 {[%clk
0:02:51.1]} 5... Nd6 {[%clk 0:03:00.3]} 6. Nxe5 {[%clk 0:02:47.5]} 6... Be7
{[%clk 0:03:00.3]} 7. Bf1 {[%clk 0:02:44.6]} 7... Nxe5 {[%clk 0:03:00.5]} 8.
Rxe5 {[%clk 0:02:43.9]} 8... O-O {[%clk 0:03:01.4]} 9. Nc3 {[%clk 0:02:43.8]}
9... Ne8 {[%clk 0:02:57.4]} 10. Nd5 {[%clk 0:02:35.1]} 10... Bd6 {[%clk
0:02:56.8]} 11. Re1 {[%clk 0:02:29.8]} 11... c6 {[%clk 0:02:56.6]} 12. Ne3
{[%clk 0:02:28.1]} 12... Be7 {[%clk 0:02:57]} 13. d4 {[%clk 0:02:27.2]} 13... d5
{[%clk 0:02:56.5]} 14. c3 {[%clk 0:02:23.5]} 14... g6 {[%clk 0:02:53.2]} 15. Qf3
{[%clk 0:02:19.7]} 15... Ng7 {[%clk 0:02:52.4]} 16. Bd3 {[%clk 0:02:14]} 16...
h5 {[%clk 0:02:48.3]} 17. h3 {[%clk 0:02:13.7]} 17... Bd6 {[%clk 0:02:45.6]} 18.
Nf1 {[%clk 0:02:11.6]} 18... Bf5 {[%clk 0:02:42.3]} 19. Bh6 {[%clk 0:02:09.3]}
19... Bxd3 {[%clk 0:02:39.6]} 20. Qxd3 {[%clk 0:02:07.5]} 20... Re8 {[%clk
0:02:38.5]} 21. Bxg7 {[%clk 0:01:55]} 21... Kxg7 {[%clk 0:02:38.3]} 22. Ne3
{[%clk 0:01:54.8]} 22... Qg5 {[%clk 0:02:36]} 23. c4 {[%clk 0:01:50.3]} 23...
Qf4 {[%clk 0:02:08.3]} 24. Nf1 {[%clk 0:01:39.5]} 24... dxc4 {[%clk 0:02:05.1]}
25. Qxc4 {[%clk 0:01:37.9]} 25... Re4 {[%clk 0:01:58.6]} 26. Rxe4 {[%clk
0:01:28.4]} 26... Qxe4 {[%clk 0:01:59.5]} 27. Rd1 {[%clk 0:01:26.5]} 27... Rd8
{[%clk 0:01:54.7]} 28. Qb3 {[%clk 0:01:20]} 28... Rd7 {[%clk 0:01:51.6]} 29. Qe3
{[%clk 0:01:11.5]} 29... Qd5 {[%clk 0:01:46.7]} 30. a3 {[%clk 0:01:06.6]} 30...
Be7 {[%clk 0:01:47.1]} 31. Qd2 {[%clk 0:00:50.1]} 31... Bf6 {[%clk 0:01:45.3]}
32. Ne3 {[%clk 0:00:50.1]} 32... Qe4 {[%clk 0:01:34.4]} 33. d5 {[%clk
0:00:44.8]} 33... Kg8 {[%clk 0:01:13]} 34. Qa5 {[%clk 0:00:32.3]} 34... b6
{[%clk 0:00:59.1]} 35. Qd2 {[%clk 0:00:19.5]} 35... Bg5 {[%clk 0:00:58.4]} 36.
Qe2 {[%clk 0:00:06.7]} 36... Rxd5 {[%clk 0:00:50.9]} 37. Rxd5 {[%clk 0:00:02.6]}
37... cxd5 {[%clk 0:00:49.2]} 38. Qd2 {[%clk 0:00:02.7]} 38... d4 {[%clk
0:00:47.4]} 0-1

[Event "*** Titled Tuesday Blitz"]
[Site "Chess.com"]
[Date "2021.03.16"]
[Round "7"]
[White "DinaBelenkaya"]
[Black "korbul"]
[Result "0-1"]
[WhiteElo "2373"]
[BlackElo "2592"]
[TimeControl "180+1"]
[EndTime "11:17:27 PDT"]
[Termination "korbul won on time"]

1. e4 {[%clk 0:03:00.9]} 1... c5 {[%clk 0:02:59.5]} 2. Nc3 {[%clk 0:02:57.5]}
2... e6 {[%clk 0:02:59.4]} 3. Nf3 {[%clk 0:02:50.1]} 3... a6 {[%clk 0:02:56.6]}
4. g3 {[%clk 0:02:47.2]} 4... b5 {[%clk 0:02:53.8]} 5. Bg2 {[%clk 0:02:47.3]}
5... Bb7 {[%clk 0:02:52.3]} 6. d4 {[%clk 0:02:47.5]} 6... cxd4 {[%clk 0:02:52]}
7. Nxd4 {[%clk 0:02:48.4]} 7... Nf6 {[%clk 0:02:50.1]} 8. O-O {[%clk 0:02:48.4]}
8... b4 {[%clk 0:02:49]} 9. Na4 {[%clk 0:02:37.5]} 9... Qc7 {[%clk 0:02:40.8]}
10. Re1 {[%clk 0:02:35.3]} 10... d6 {[%clk 0:02:39]} 11. c4 {[%clk 0:02:29.2]}
11... Be7 {[%clk 0:02:35.2]} 12. Bg5 {[%clk 0:02:12.9]} 12... O-O {[%clk
0:02:33.8]} 13. Rc1 {[%clk 0:02:12.3]} 13... Nbd7 {[%clk 0:02:32.7]} 14. Qe2
{[%clk 0:01:48.5]} 14... Rfe8 {[%clk 0:02:31.3]} 15. Bd2 {[%clk 0:01:42.7]}
15... Nc5 {[%clk 0:02:12.1]} 16. Nxc5 {[%clk 0:01:09]} 16... dxc5 {[%clk
0:02:10.4]} 17. Nc2 {[%clk 0:00:53.4]} 17... Red8 {[%clk 0:02:01.4]} 18. f3
{[%clk 0:00:50.3]} 18... Nd7 {[%clk 0:01:59.5]} 19. Bf4 {[%clk 0:00:47.2]} 19...
Qb6 {[%clk 0:01:52]} 20. g4 {[%clk 0:00:44.7]} 20... Bf6 {[%clk 0:01:51.5]} 21.
Ne3 {[%clk 0:00:43.7]} 21... Bd4 {[%clk 0:01:48.9]} 22. g5 {[%clk 0:00:39.2]}
22... Ne5 {[%clk 0:01:48]} 23. Red1 {[%clk 0:00:34.7]} 23... Ng6 {[%clk
0:01:38.7]} 24. Bg3 {[%clk 0:00:34.4]} 24... e5 {[%clk 0:01:38.5]} 25. Kh1
{[%clk 0:00:29.2]} 25... Bxe3 {[%clk 0:01:38.6]} 26. Qxe3 {[%clk 0:00:28.7]}
26... Rd4 {[%clk 0:01:38.8]} 27. Rxd4 {[%clk 0:00:21]} 27... cxd4 {[%clk
0:01:38.5]} 28. Qd2 {[%clk 0:00:17.5]} 28... Qc5 {[%clk 0:01:37.8]} 29. h4
{[%clk 0:00:17.8]} 29... Rd8 {[%clk 0:01:31.6]} 30. h5 {[%clk 0:00:17]} 30...
Nf8 {[%clk 0:01:31.7]} 31. a3 {[%clk 0:00:15.4]} 31... bxa3 {[%clk 0:01:24.1]}
32. b4 {[%clk 0:00:16.3]} 32... Qe7 {[%clk 0:01:20.5]} 33. Bf1 {[%clk
0:00:14.8]} 33... a2 {[%clk 0:01:18.3]} 34. Bd3 {[%clk 0:00:14.9]} 34... Ne6
{[%clk 0:01:15.1]} 35. Ra1 {[%clk 0:00:06.2]} 35... Nxg5 {[%clk 0:01:14.6]} 36.
Kg2 {[%clk 0:00:03.7]} 36... a5 {[%clk 0:01:07.5]} 37. b5 {[%clk 0:00:02.4]}
37... f6 {[%clk 0:01:01.7]} 38. Rxa2 {[%clk 0:00:03]} 38... Qc7 {[%clk
0:00:58.6]} 39. Rxa5 {[%clk 0:00:02.5]} 39... h6 {[%clk 0:00:56.8]} 40. Qa2
{[%clk 0:00:03.1]} 40... Kh7 {[%clk 0:00:55.1]} 41. Qa3 {[%clk 0:00:03.7]} 41...
Qd7 {[%clk 0:00:51.9]} 42. Ra7 {[%clk 0:00:03.8]} 42... Qh3+ {[%clk 0:00:51.2]}
43. Kf2 {[%clk 0:00:03.4]} 43... Qxh5 {[%clk 0:00:50.2]} 44. Bf1 {[%clk
0:00:01.3]} 44... d3 {[%clk 0:00:49.1]} 45. Bg2 {[%clk 0:00:01.7]} 45... d2
{[%clk 0:00:49.3]} 0-1

[Event "*** Titled Tuesday Blitz"]
[Site "Chess.com"]
[Date "2021.03.16"]
[Round "7"]
[White "jraosam"]
[Black "c_r_e_e_p_e_r"]
[Result "0-1"]
[WhiteElo "1891"]
[BlackElo "2351"]
[TimeControl "180+1"]
[EndTime "11:17:28 PDT"]
[Termination "c_r_e_e_p_e_r won by resignation"]

1. c4 {[%clk 0:03:00.9]} 1... e5 {[%clk 0:02:56.6]} 2. Nc3 {[%clk 0:03:00.6]}
2... Nf6 {[%clk 0:02:57.2]} 3. Nf3 {[%clk 0:02:59.8]} 3... Nc6 {[%clk
0:02:57.5]} 4. e3 {[%clk 0:03:00.1]} 4... Bb4 {[%clk 0:02:52.1]} 5. d4 {[%clk
0:03:00.4]} 5... O-O {[%clk 0:02:42.3]} 6. d5 {[%clk 0:02:49.7]} 6... e4 {[%clk
0:02:39.9]} 7. dxc6 {[%clk 0:02:29.7]} 7... exf3 {[%clk 0:02:40]} 8. cxb7 {[%clk
0:02:28.6]} 8... Bxb7 {[%clk 0:02:39.2]} 9. gxf3 {[%clk 0:02:28.5]} 9... d5
{[%clk 0:02:36.4]} 10. cxd5 {[%clk 0:02:24.7]} 10... Nxd5 {[%clk 0:02:34.2]} 11.
Bd2 {[%clk 0:02:22]} 11... Re8 {[%clk 0:02:26.8]} 12. Be2 {[%clk 0:01:55.6]}
12... Qe7 {[%clk 0:02:03.2]} 13. Nxd5 {[%clk 0:01:49.1]} 13... Bxd5 {[%clk
0:02:02.6]} 14. Bxb4 {[%clk 0:01:35.2]} 14... Qxb4+ {[%clk 0:02:03.5]} 15. Qd2
{[%clk 0:01:36]} 15... Qb7 {[%clk 0:02:03]} 16. e4 {[%clk 0:01:26.9]} 16... Be6
{[%clk 0:01:58.6]} 17. b3 {[%clk 0:00:53.1]} 17... a5 {[%clk 0:01:50.9]} 18. Qc3
{[%clk 0:00:37.2]} 18... c6 {[%clk 0:01:39.7]} 19. Rg1 {[%clk 0:00:35.2]} 19...
f5 {[%clk 0:01:40]} 20. O-O-O {[%clk 0:00:22.3]} 20... a4 {[%clk 0:01:36]} 21.
b4 {[%clk 0:00:09.6]} 21... a3 {[%clk 0:01:34.3]} 22. Bc4 {[%clk 0:00:06.4]}
22... fxe4 {[%clk 0:01:12.1]} 23. Bxe6+ {[%clk 0:00:05.1]} 23... Rxe6 {[%clk
0:01:13]} 24. Qc5 {[%clk 0:00:02.4]} 24... exf3 {[%clk 0:01:01.5]} 25. Rg3
{[%clk 0:00:01.5]} 25... Rf6 {[%clk 0:00:58]} 26. Rdg1 {[%clk 0:00:02.4]} 26...
g6 {[%clk 0:00:54.6]} 27. Qc4+ {[%clk 0:00:02.9]} 27... Qf7 {[%clk 0:00:52.8]}
28. Qd4 {[%clk 0:00:03.2]} 28... Rf8 {[%clk 0:00:49.2]} 29. Kb1 {[%clk
0:00:03.7]} 29... Rf4 {[%clk 0:00:46.8]} 30. Qc3 {[%clk 0:00:04.6]} 30... Qf5+
{[%clk 0:00:45.9]} 31. Ka1 {[%clk 0:00:03.6]} 31... Qf6 {[%clk 0:00:41.4]} 32.
Qxf6 {[%clk 0:00:03.2]} 32... R8xf6 {[%clk 0:00:42.3]} 33. Rb1 {[%clk
0:00:03.2]} 33... Re6 {[%clk 0:00:38.9]} 34. Rb3 {[%clk 0:00:04.1]} 34... Re2
{[%clk 0:00:38]} 35. Rb1 {[%clk 0:00:05]} 35... Rxf2 {[%clk 0:00:37.5]} 36. Rb3
{[%clk 0:00:03]} 36... Rf1+ {[%clk 0:00:35.8]} 37. Rb1 {[%clk 0:00:03]} 37...
Rxb1+ {[%clk 0:00:36.4]} 38. Kxb1 {[%clk 0:00:03.9]} 38... f2 {[%clk 0:00:37.1]}
0-1

[Event "*** Titled Tuesday Blitz"]
[Site "Chess.com"]
[Date "2021.03.16"]
[Round "7"]
[White "Rodalquilar"]
[Black "ChessWarrior7197"]
[Result "1-0"]
[WhiteElo "2685"]
[BlackElo "2883"]
[TimeControl "180+1"]
[EndTime "11:17:29 PDT"]
[Termination "Rodalquilar won on time"]

1. d4 {[%clk 0:02:47.6]} 1... d5 {[%clk 0:02:59.2]} 2. Bf4 {[%clk 0:02:47.7]}
2... c5 {[%clk 0:02:58.4]} 3. e3 {[%clk 0:02:48]} 3... Nc6 {[%clk 0:02:58.6]} 4.
Nf3 {[%clk 0:02:48.5]} 4... Nf6 {[%clk 0:02:58.2]} 5. c3 {[%clk 0:02:48.3]} 5...
Qb6 {[%clk 0:02:54]} 6. Qc2 {[%clk 0:02:48.7]} 6... g6 {[%clk 0:02:43.9]} 7.
Nbd2 {[%clk 0:02:47.9]} 7... Bf5 {[%clk 0:02:44.3]} 8. dxc5 {[%clk 0:02:48.1]}
8... Qxc5 {[%clk 0:02:42.3]} 9. Qb3 {[%clk 0:02:48.5]} 9... Qb6 {[%clk
0:02:38.8]} 10. Qxb6 {[%clk 0:02:46.6]} 10... axb6 {[%clk 0:02:39.7]} 11. Bb5
{[%clk 0:02:47.3]} 11... Bg7 {[%clk 0:02:34.8]} 12. Ne5 {[%clk 0:02:19.8]} 12...
Bd7 {[%clk 0:01:28.3]} 13. Nxd7 {[%clk 0:02:19]} 13... Kxd7 {[%clk 0:01:26.3]}
14. h4 {[%clk 0:01:49.7]} 14... h6 {[%clk 0:01:22.1]} 15. a4 {[%clk 0:01:48]}
15... Ne8 {[%clk 0:01:21.5]} 16. e4 {[%clk 0:01:46.3]} 16... e6 {[%clk
0:01:15.6]} 17. exd5 {[%clk 0:01:45]} 17... exd5 {[%clk 0:01:16.5]} 18. O-O-O
{[%clk 0:01:45.1]} 18... Nc7 {[%clk 0:01:15.6]} 19. Nc4 {[%clk 0:01:33.1]} 19...
Nxb5 {[%clk 0:00:28.6]} 20. Nxb6+ {[%clk 0:01:32.1]} 20... Ke6 {[%clk 0:00:29]}
21. Nxa8 {[%clk 0:01:25.2]} 21... Nxc3 {[%clk 0:00:29.3]} 22. Nc7+ {[%clk
0:01:18.3]} 22... Kf5 {[%clk 0:00:29.7]} 23. bxc3 {[%clk 0:01:18.6]} 23... Kxf4
{[%clk 0:00:29.8]} 24. Rxd5 {[%clk 0:01:13.5]} 24... Rc8 {[%clk 0:00:25.4]} 25.
Rd7 {[%clk 0:01:00.1]} 25... Ne5 {[%clk 0:00:25.1]} 26. Nd5+ {[%clk 0:01:00.5]}
26... Ke4 {[%clk 0:00:22.4]} 27. f3+ {[%clk 0:00:43.1]} 27... Kd3 {[%clk
0:00:13.2]} 28. Rd1+ {[%clk 0:00:35.7]} 28... Ke2 {[%clk 0:00:12.4]} 29. Rd2+
{[%clk 0:00:31]} 29... Kf1 {[%clk 0:00:09.6]} 30. Rxb7 {[%clk 0:00:24.4]} 30...
h5 {[%clk 0:00:07.6]} 31. Rb1 {[%clk 0:00:22.8]} 31... Kg1 {[%clk 0:00:06.1]}
32. g4 {[%clk 0:00:22.4]} 1-0